fUSD/lending_fUSD_20251105
["ID","MTS","AMOUNT","RATE_DAILY","PERIOD"]
[393188310,1762306243203,-198.45449847,0.000275,2]
[393188311,1762306243213,-150.83032951,0.0002751,2]
[393188312,1762306243223,-150.0,0.0002751,2]
[393188313,1762306243232,-150.0,0.0002751,2]
[393188314,1762306243241,-150.0,0.0002751,2]
[393188315,1762306243251,-150.0,0.0002751,2]
[393188316,1762306243260,-150.0,0.0002751,2]
[393188317,1762306243273,-1000.0,0.000276,2]
[393188318,1762306243283,-150.0,0.00027647,2]
[393188319,1762306243293,-150.0,0.00027647,2]
[393188320,1762306243303,-200.0,0.00027647,2]
[393188321,1762306243313,-200.0,0.00027647,2]
[393188322,1762306243323,-1000.0,0.00027667,2]
[393188323,1762306243333,-695.64,0.00027671,30]
[393188324,1762306243343,-1522.0,0.00027747,7]
[393188325,1762306243353,-150.0,0.00027784,2]
[393188326,1762306243363,-217.2,0.00027796,2]
[393188327,1762306243373,-15365.0315767,0.00027805,3]
[393188328,1762306243384,-167.49,0.00027806,2]
[393188329,1762306243397,-6398.0,0.00027815,5]
[393188330,1762306243409,-8509.5005612,0.00027816,2]
[393188331,1762306243419,-10884.00615789,0.00027855,2]
[393188332,1762306243430,-200.0,0.00027917,2]
[393188333,1762306243441,-1000.0,0.00027921,5]
[393188334,1762306243452,-1000.0,0.00027921,5]
[393188335,1762306243462,-1000.0,0.00027921,5]
[393188336,1762306243472,-150.0,0.00027921,2]
[393188337,1762306243482,-500.0,0.00027989,2]
[393188338,1762306243493,-167.49,0.0002799,2]
[393188339,1762306243503,-167.49,0.0002799,2]
[393188340,1762306243514,-167.49,0.0002799,2]
[393188341,1762306243531,-167.49,0.0002799,2]
[393188342,1762306243540,-162.2636248,0.00027999,2]
[393188343,1762306243550,-500.0,0.00027999,30]
[393188344,1762306243560,-500.0,0.00027999,2]
[393188345,1762306243570,-283.1,0.00028,2]
[393188346,1762306243579,-128477.42363561,0.00028,2]
[393188347,1762306243588,-157.0,0.00028,7]
[393188348,1762306243598,-157.0,0.00028,7]
[393188349,1762306243608,-70378.8354407,0.00028,2]
[393188350,1762306243620,-250.0,0.00028058,2]
[393188351,1762306243791,-1000.0,0.000281,2]
[393188352,1762306243803,-4855.26065,0.0002812,2]
[393188353,1762306243813,-1522.0,0.00028166,2]
[393188354,1762306243822,-500.0,0.00028202,30]
[393188355,1762306243832,-1520.0,0.00028285,7]
[393188356,1762306243842,-1520.0,0.00028305,7]
[393188357,1762306243851,-164.01,0.000284,7]
[393188358,1762306243860,-500.0,0.00028416,30]
[393188359,1762306243870,-1520.0,0.00028452,2]
[393188360,1762306243879,-1151.16713156,0.00028468,5]
[393188361,1762306243889,-1500.0,0.00028468,5]
[393188362,1762306243899,-514.70956381,0.00028468,5]
[393188363,1762306243908,-2000.0,0.000285,2]
[393188364,1762306243918,-1000.0,0.000285,2]
[393188366,1762306243928,-6453.0,0.00028524,2]
[393188368,1762306243938,-673.2712006,0.00028585,2]
[393188369,1762306243948,-167.49,0.00028622,2]
[393188370,1762306243958,-1000.0,0.00028632,2]
[393188371,1762306243967,-1000.0,0.00028632,2]
[393188372,1762306243976,-1000.0,0.00028632,2]
[393188373,1762306243985,-307.82,0.00028639,2]
[393188374,1762306243995,-1520.0,0.00028646,2]
[393188375,1762306244004,-200.0,0.00028656,2]
[393188376,1762306244013,-1520.0,0.00028657,2]
[393188377,1762306244026,-1000.0,0.00028667,2]
[393188378,1762306244035,-516.86542964,0.00028717,2]
[393188379,1762306244044,-555.0,0.0002877,2]
[393188380,1762306244052,-150.0,0.000288,2]
[393188381,1762306244061,-211.0,0.0002882,30]
[393188382,1762306244071,-5000.0,0.00028822,2]
[393188383,1762306244080,-7694.68805935,0.00028888,2]
[393188384,1762306244088,-500.0,0.00028922,30]
[393188385,1762306244098,-1206.9778576,0.00029016,5]
[393188386,1762306244107,-1520.0,0.00029038,2]
[393188387,1762306244116,-4855.26065,0.0002912,2]
[393188388,1762306244126,-10884.00615789,0.00029144,2]
[393188389,1762306244135,-217.2,0.00029259,2]
[393188390,1762306244144,-1000.0,0.00029268,2]
[393188391,1762306244154,-2261.0,0.00029305,2]
[393188392,1762306244163,-399.0,0.00029342,7]
[393188393,1762306244173,-164.01,0.000294,7]
[393188394,1762306244181,-399.0,0.00029501,7]
[393188395,1762306244191,-167.49,0.00029528,2]
[393188396,1762306244200,-5733.0,0.00029537,7]
[393188397,1762306244209,-6990.2900474,0.000296,30]
[393188398,1762306244218,-135.79776024,0.000296,31]
[393188399,1762306244231,-15.20223976,0.000296,31]
[393188400,1762306244240,-151.0,0.000296,31]
[393188401,1762306244249,-151.0,0.000296,31]
[393188402,1762306244259,-151.0,0.000296,31]
[393188403,1762306244268,-151.0,0.000296,31]
[393188404,1762306244281,-707.799232,0.000296,31]
[393188405,1762306244290,-707.799232,0.000296,31]
[393188406,1762306244299,-151.0,0.000296,31]
[393188407,1762306244308,-707.799232,0.000296,31]
[393188408,1762306244317,-206.584677,0.000296,31]
[393188409,1762306244327,-152.368206,0.000296,31]
[393188410,1762306244336,-151.0,0.000296,31]
[393188411,1762306244345,-151.0,0.000296,31]
[393188412,1762306244355,-47.17197321,0.000296,31]
[393188413,1762306244400,-660.62725879,0.000296,31]
[393188414,1762306244410,-151.0,0.000296,30]
[393188415,1762306244419,-151.0,0.000296,31]
[393188416,1762306244428,-258.602618,0.000296,31]
[393188417,1762306244437,-151.0,0.000296,31]
[393188418,1762306244447,-187.270358,0.000296,31]
[393188419,1762306244456,-151.0,0.000296,31]
[393188420,1762306244465,-500.0,0.00029644,2]
[393188421,1762306244474,-76.13387975,0.00029667,2]
[393188425,1762306245865,-523.91227166,0.00017999,2]
[393188426,1762306245876,-167.84656613,0.00028452,2]
[393188427,1762306245885,-379.79016221,0.00029667,2]
[393188428,1762306245899,-544.07595804,0.00029667,2]
[393188429,1762306245909,-448.92404196,0.000297,2]
[393188430,1762306245928,-340.79130258,0.000297,2]
[393188431,1762306245939,-210.28465546,0.000297,2]
[393188432,1762306245949,-395.10488856,0.00029738,2]
[393188433,1762306245994,-1591.49311888,0.00029738,2]
[393188442,1762306255088,296.97810188,0.00038265,120]
[393188443,1762306256334,458.2225141,0.00038265,120]
[393188444,1762306257995,170.93269181,0.00038265,120]
[393188445,1762306261568,195.0,0.00029738,120]
[393188447,1762306270708,164.18713109,0.00038265,120]
[393188448,1762306271120,178.22930633,0.00038265,120]
[393188452,1762306278543,500.0,0.00038265,120]
[393188453,1762306279858,500.0,0.00038265,120]
[393188454,1762306280203,309.10639437,0.00038265,120]
[393188455,1762306283168,206.40626771,0.00038265,120]
[393188458,1762306289564,215.98005168,0.00038265,120]
[393188462,1762306317475,500.0,0.00038265,120]
[393188463,1762306317751,346.48132099,0.00038265,120]
[393188464,1762306319529,293.03086197,0.00038265,120]
[393188466,1762306327965,152.35303346,0.00038265,30]
[393188468,1762306330552,162.58510528,0.00038265,120]
[393188469,1762306331541,585.86458,0.00038265,120]
[393188470,1762306335653,500.0,0.00038265,120]
[393188472,1762306336923,171.9909778,0.00038265,120]
[393188473,1762306340537,803.76719472,0.00038265,120]
[393188474,1762306340720,261.96021418,0.00038265,30]
[393188475,1762306347747,214.80169345,0.00038265,120]
[393188476,1762306350365,164.68784419,0.00038265,120]
[393188478,1762306360545,150.40132753,0.00038265,120]
[393188479,1762306361011,171.8436814,0.00038271,120]
[393188480,1762306365017,150.0,0.00038271,30]
[393188481,1762306366096,161.5475359,0.00038271,120]
[393188482,1762306366857,377.82423044,0.00038271,120]
[393188483,1762306366918,152.07678733,0.00038271,120]
[393188484,1762306369927,172.49093735,0.00038271,120]
[393188485,1762306376068,180.69041581,0.00038271,120]
[393188486,1762306377801,318.24256508,0.00038271,120]
[393188487,1762306380228,174.76207421,0.00038271,120]
[393188488,1762306383186,297.8214097,0.00038271,120]
[393188489,1762306383566,234.52390326,0.00038271,120]
[393188495,1762306399685,388.24454309,0.00038271,120]
[393188496,1762306404563,155.89977296,0.00038271,120]
[393188499,1762306416920,241.25911886,0.00038271,120]
[393188500,1762306417500,603.72069891,0.00038271,120]
[393188504,1762306428731,194.35280282,0.00038271,120]
[393188505,1762306429406,258.09285665,0.00038271,120]
[393188509,1762306442203,452.09812233,0.00038271,120]
[393188511,1762306443473,580.11268285,0.00038271,120]
[393188514,1762306456277,614.23915022,0.00038271,120]
[393188516,1762306457729,197.77776967,0.00038271,120]
[393188517,1762306462000,186.49155176,0.00038271,60]
[393188519,1762306478578,-439.0,0.00017972,2]
[393188521,1762306501261,300.0,0.00017972,2]
[393188522,1762306501294,1200.0,0.00017972,2]
[393188542,1762306603238,500.0,0.0002939,120]
[393188544,1762306637080,241.9165,0.00017872,2]
[393188548,1762306724538,1500.0,0.0003013,120]
[393188557,1762306893442,590.977,0.00030137,120]
[393188560,1762306914074,-948.02153827,0.0001959,2]
[393188561,1762306914107,-850.0,0.00019609,2]
[393188562,1762306914151,-500.0,0.00019609,2]
[393188563,1762306914189,-500.0,0.00019609,2]
[393188564,1762306914226,-300.0,0.00019609,2]
[393188565,1762306914259,-500.0,0.0001961,2]
[393188566,1762306914295,-500.0,0.0001961,2]
[393188567,1762306914329,-500.0,0.0001961,2]
[393188568,1762306914359,-303.96692346,0.0001961,2]
[393188569,1762306915064,-196.03307654,0.0001961,2]
[393188570,1762306915096,-500.0,0.0001961,2]
[393188571,1762306915129,-500.0,0.0001961,2]
[393188572,1762306915158,-500.0,0.0001961,2]
[393188573,1762306915188,-500.0,0.0001961,2]
[393188574,1762306915218,-500.0,0.0001961,2]
[393188575,1762306915255,-500.0,0.0001961,2]
[393188576,1762306915290,-500.0,0.0001961,2]
[393188577,1762306915321,-500.0,0.0001961,2]
[393188578,1762306915349,-500.0,0.0001961,2]
[393188579,1762306915379,-253.8228162,0.00019658,2]
[393188580,1762306915427,-233.75106455,0.00019658,2]
[393188581,1762306915456,-310.74840821,0.00019658,2]
[393188582,1762306915484,-1680.0,0.00019706,2]
[393188583,1762306915512,-1445.0,0.00020629,2]
[393188584,1762306915543,-500.0,0.00020999,2]
[393188585,1762306915570,-150.24721758,0.00020999,2]
[393188586,1762306915599,-541.32940657,0.00020999,2]
[393188587,1762306916960,-530.9904107,0.00020999,2]
[393188588,1762306916989,-264.6662865,0.00020999,2]
[393188589,1762306917017,-463.41676325,0.00020999,2]
[393188592,1762306917047,-500.0,0.00020999,2]
[393188593,1762306917076,-500.0,0.00020999,2]
[393188594,1762306917114,-500.0,0.00020999,2]
[393188595,1762306917142,-640.1517392,0.00020999,2]
[393188596,1762306917170,-500.0,0.00020999,2]
[393188597,1762306917199,-420.0,0.00021361,2]
[393188598,1762306917226,-500.0,0.00021399,2]
[393188599,1762306917578,-506.88930817,0.00021399,2]
[393188600,1762306917606,-2486.15478366,0.000214,2]
[393188601,1762306920109,-4013.92181634,0.000214,2]
[393188602,1762306920140,-279.6991,0.000214,2]
[393188603,1762306923090,-300.0,0.00021527,2]
[393188632,1762307056707,-1331.91,0.00019507,2]
[393188633,1762307056737,-193.0,0.00021457,2]
[393188634,1762307056766,-195.0,0.00021457,2]
[393188635,1762307056795,-300.0,0.00021457,2]
[393188636,1762307056824,-250.0,0.00021457,2]
[393188637,1762307056858,-200.56676977,0.00021457,2]
[393188638,1762307056891,-300.0,0.00021527,2]
[393188639,1762307057867,198.0,0.00038272,120]
[393188644,1762307077188,500.0,0.0002939,120]
[393188645,1762307077512,500.0,0.00029999,120]
[393188655,1762307192414,500.0,0.00029071,120]
[393188656,1762307192686,500.0,0.00029084,120]
[393188657,1762307192983,500.0,0.00029361,120]
[393188658,1762307193201,500.0,0.0002939,120]
[393188659,1762307193462,586.05,0.00029789,120]
[393188660,1762307199492,-8810.1788645,0.0002046,2]
[393188661,1762307199587,-1335.0559574,0.0002046,2]
[393188662,1762307199616,-300.0,0.00021527,2]
[393188663,1762307199649,-1200.0,0.00021527,2]
[393188664,1762307199705,-4329.8980852,0.00021528,2]
[393188665,1762307202647,-10000.01,0.00021528,2]
[393188666,1762307205176,-3019.1580852,0.00021528,2]
[393188667,1762307205199,-3961.6938296,0.00021528,2]
[393188668,1762307205296,-502.86103867,0.00021573,2]
[393188669,1762307205323,-500.0,0.00021573,2]
[393188670,1762307205350,-500.57081454,0.00021573,2]
[393188671,1762307205377,-511.3606377,0.00021573,2]
[393188672,1762307205406,-500.0,0.00021573,2]
[393188673,1762307205435,-500.0,0.00021573,2]
[393188674,1762307205465,-618.93028117,0.00021573,2]
[393188675,1762307205496,-737.44338224,0.00021604,2]
[393188676,1762307205614,-1257.67769136,0.00021604,2]
[393188692,1762307220970,500.0,0.00038272,120]
[393188693,1762307221202,500.0,0.00038272,120]
[393188694,1762307221443,500.0,0.00038272,120]
[393188695,1762307221689,500.0,0.00038272,120]
[393188696,1762307221948,500.0,0.00038272,120]
[393188697,1762307222252,500.0,0.00038272,120]
[393188698,1762307222510,500.0,0.00038272,120]
[393188699,1762307222748,391.36449054,0.00038272,120]
[393188709,1762307336936,-1200.0,0.00021572,2]
[393188710,1762307336968,-554.9128886,0.00021573,2]
[393188711,1762307336998,-500.0,0.00021573,2]
[393188712,1762307337026,-500.0,0.00021573,2]
[393188713,1762307337054,-500.0,0.00021573,2]
[393188714,1762307337081,-500.56206736,0.00021573,2]
[393188715,1762307337108,-506.43722381,0.00021573,2]
[393188716,1762307337139,-195.78612981,0.00021573,2]
[393188717,1762307337167,-273.08197864,0.00021604,2]
[393188718,1762307337283,-538.44942356,0.00021604,2]
[393188719,1762307337313,-500.86745626,0.00021638,2]
[393188720,1762307337345,-864.39,0.00021939,2]
[393188721,1762307337481,-538.44942356,0.00021939,2]
[393188722,1762307337497,-6192.59624036,0.00021939,2]
[393188723,1762307339776,-2995.30433608,0.00021939,2]
[393188724,1762307339804,-162.63567139,0.00022,3]
[393188725,1762307339832,-501.73230644,0.00022121,2]
[393188726,1762307339860,-1000.0,0.00022121,2]
[393188727,1762307339940,-680.66537218,0.00022121,2]
[393188728,1762307342832,-319.33462782,0.00022121,2]
[393188729,1762307342860,-154.53997904,0.00022299,2]
[393188730,1762307342900,-500.0,0.00022299,2]
[393188731,1762307342932,-257.53786932,0.00022299,2]
[393188732,1762307342965,-500.0,0.00022299,2]
[393188733,1762307342995,-300.0,0.00022299,2]
[393188734,1762307343094,-5937.18504764,0.000223,2]
[393188750,1762307431787,-1380.29522,0.00022187,2]
[393188751,1762307431796,-162.86678,0.00022298,2]
[393188752,1762307431840,-137.13322,0.00022298,2]
[393188753,1762307431849,-300.0,0.00022298,2]
[393188754,1762307431858,-1200.0,0.00022298,2]
[393188755,1762307431867,-500.0,0.00022299,2]
[393188756,1762307431876,-188.838152,0.00022299,2]
[393188757,1762307431893,-347.07352829,0.00022299,2]
[393188758,1762307431902,-500.0,0.00022299,2]
[393188759,1762307431911,-500.0,0.00022299,2]
[393188760,1762307431920,-500.0,0.00022299,2]
[393188761,1762307431932,-500.0,0.00022299,2]
[393188762,1762307431943,-500.0,0.00022299,2]
[393188763,1762307431957,-500.0,0.00022299,2]
[393188764,1762307431967,-500.0,0.00022299,2]
[393188765,1762307431977,-499.99999999,0.00022299,2]
[393188766,1762307431986,-500.0,0.00022299,2]
[393188767,1762307431995,-6653.25016327,0.000223,2]
[393188768,1762307432005,-4070.2655,0.000223,2]
[393188769,1762307432017,-2500.0,0.000223,2]
[393188770,1762307432026,-2751.0,0.00022329,2]
[393188771,1762307432035,-1600.0,0.00022372,2]
[393188772,1762307432044,-425.6840443,0.00022373,2]
[393188773,1762307432053,-426.17665821,0.00022373,2]
[393188774,1762307432062,-500.81252533,0.00022373,2]
[393188775,1762307432071,-500.0,0.00022373,2]
[393188776,1762307432080,-500.0,0.00022373,2]
[393188777,1762307432089,-257.30982705,0.00022387,2]
[393188778,1762307432098,-151.0,0.00022387,2]
[393188779,1762307432107,-151.0,0.00022387,2]
[393188780,1762307432116,-151.0,0.00022387,2]
[393188782,1762307432125,-151.0,0.00022387,2]
[393188783,1762307432134,-151.0,0.00022387,2]
[393188784,1762307432143,-151.0,0.00022387,2]
[393188785,1762307432153,-151.0,0.00022387,2]
[393188786,1762307432162,-151.0,0.00022387,2]
[393188788,1762307432171,-151.0,0.00022387,2]
[393188790,1762307432183,-151.0,0.00022387,2]
[393188792,1762307432194,-151.0,0.00022387,2]
[393188793,1762307432203,-151.0,0.00022387,2]
[393188795,1762307432213,-151.0,0.00022387,2]
[393188797,1762307432222,-151.0,0.00022387,2]
[393188799,1762307432231,-151.0,0.00022387,2]
[393188801,1762307432241,-151.0,0.00022387,2]
[393188803,1762307432250,-151.0,0.00022387,2]
[393188805,1762307432259,-151.0,0.00022387,2]
[393188807,1762307432269,-151.0,0.00022387,2]
[393188809,1762307432278,-151.0,0.00022387,2]
[393188811,1762307432287,-1000.0,0.00022399,2]
[393188813,1762307432296,-32190.0739,0.000224,2]
[393188815,1762307432305,-1167.81,0.000224,2]
[393188817,1762307432314,-9999.99,0.000224,2]
[393188819,1762307432324,-9999.99,0.000224,2]
[393188821,1762307432333,-150.99,0.000224,2]
[393188824,1762307432348,-299.99,0.000224,7]
[393188827,1762307432361,-402.57,0.000224,2]
[393188829,1762307432372,-9999.99,0.000224,2]
[393188831,1762307432381,-9999.99,0.000224,2]
[393188833,1762307432390,-1451.97,0.000224,2]
[393188835,1762307432400,-1186.14,0.000224,2]
[393188837,1762307432409,-1660.41,0.000224,2]
[393188839,1762307432418,-49355.23108133,0.000224,2]
[393188841,1762307432433,-536.8240265,0.000224,2]
[393188844,1762307432446,-1707.54897056,0.000224,2]
[393188846,1762307432457,-3785.92125758,0.000224,2]
[393188861,1762307437667,-374.9872498,0.000224,2]
[393188862,1762307437719,-3948.53693535,0.000224,2]
[393188863,1762307437731,-297.423,0.000224,2]
[393188864,1762307437776,-432.50901374,0.000224,2]
[393188865,1762307437787,-3647.89785019,0.000224,2]
[393188866,1762307437830,-896.40182499,0.000224,2]
[393188867,1762307437885,-6765.33878996,0.000224,2]
[393188868,1762307437895,-1589.6,0.000224,2]
[393188869,1762307437906,-1719.15,0.000224,2]
[393188870,1762307437915,-999.99,0.000224,2]
[393188871,1762307437924,-499.99,0.000224,2]
[393188872,1762307437938,-12025.44,0.000224,2]
[393188873,1762307437951,-150.99,0.000224,2]
[393188874,1762307437960,-9999.99,0.000224,2]
[393188875,1762307437971,-50988.42,0.000224,2]
[393188876,1762307437980,-8300.35,0.000224,2]
[393188877,1762307437991,-9999.99,0.000224,2]
[393188878,1762307438001,-1359.07,0.000224,2]
[393188879,1762307438011,-3577.32,0.000224,2]
[393188880,1762307438022,-166.66,0.00022582,2]
[393188881,1762307438032,-500.0,0.00022623,2]
[393188882,1762307438042,-151.0,0.00022662,7]
[393188883,1762307438053,-1500.0,0.00022668,2]
[393188884,1762307438062,-1503.00914392,0.00022668,2]
[393188885,1762307438072,-500.89659878,0.00022687,2]
[393188886,1762307438081,-540.14213884,0.00022687,2]
[393188887,1762307438091,-244.68735903,0.00022687,2]
[393188888,1762307438102,-500.0,0.00022687,2]
[393188889,1762307438112,-151.47,0.00022868,2]
[393188890,1762307438122,-1000.0,0.00022921,2]
[393188891,1762307438131,-1000.0,0.00022921,2]
[393188892,1762307438140,-151.68,0.00023142,2]
[393188893,1762307438149,-2000.0,0.00023216,2]
[393188894,1762307438159,-1003.0,0.00023222,2]
[393188895,1762307438168,-1000.0,0.00023235,2]
[393188896,1762307438177,-286.29911607,0.00023248,2]
[393188897,1762307438190,-279.6991,0.00023248,2]
[393188898,1762307438200,-733.2109,0.00023248,2]
[393188899,1762307438210,-166.66,0.00023327,2]
[393188900,1762307438220,-251.92,0.00023343,2]
[393188901,1762307438229,-500.0,0.00023347,2]
[393188902,1762307438239,-223.94658341,0.00023347,2]
[393188903,1762307438249,-329.2670358,0.00023347,2]
[393188904,1762307438259,-500.0,0.00023347,2]
[393188905,1762307438269,-199.64205969,0.00023347,2]
[393188906,1762307438280,-500.0,0.00023347,2]
[393188907,1762307438290,-553.68779856,0.00023347,2]
[393188908,1762307438300,-500.0,0.00023347,2]
[393188909,1762307438310,-508.80290062,0.00023347,2]
[393188910,1762307438320,-500.0,0.00023347,2]
[393188911,1762307438331,-500.0,0.00023347,2]
[393188912,1762307438342,-525.50653201,0.00023347,2]
[393188913,1762307438352,-1162.38,0.00023348,2]
[393188914,1762307438362,-500.0,0.00023352,2]
[393188915,1762307438372,-500.0,0.00023352,2]
[393188916,1762307438382,-500.0,0.00023352,2]
[393188917,1762307438392,-500.0,0.00023352,2]
[393188918,1762307438403,-476.03838915,0.00023352,2]
[393188919,1762307438413,-500.0,0.00023373,2]
[393188920,1762307438423,-150.0,0.00023373,2]
[393188921,1762307438434,-500.0,0.00023373,2]
[393188922,1762307438444,-500.0,0.00023373,2]
[393188923,1762307438453,-511.68204989,0.00023468,2]
[393188924,1762307438464,-1500.0,0.00023468,2]
[393188925,1762307438475,-501.65143851,0.00023531,2]
[393188926,1762307438484,-281.38814156,0.00023535,2]
[393188927,1762307438494,-1162.38,0.00023622,2]
[393188928,1762307438504,-2500.0,0.00023764,2]
[393188929,1762307438513,-419.42840214,0.00023783,2]
[393188930,1762307438523,-500.0,0.00023893,2]
[393188931,1762307438534,-500.0,0.00023893,2]
[393188932,1762307438544,-509.01378392,0.00023893,2]
[393188933,1762307438554,-500.0,0.00023893,2]
[393188934,1762307438564,-1162.38,0.00023896,2]
[393188935,1762307438574,-1000.0,0.000239,2]
[393188936,1762307438584,-1132.68205004,0.000239,2]
[393188937,1762307438594,-485.96504137,0.000239,2]
[393188938,1762307438604,-1000.0,0.000239,2]
[393188939,1762307438614,-150.0,0.00023921,2]
[393188940,1762307438623,-1000.0,0.00023921,2]
[393188941,1762307438633,-171.37286122,0.00023921,2]
[393188942,1762307438643,-1000.0,0.00023921,2]
[393188943,1762307438653,-500.0,0.00024016,2]
[393188944,1762307438663,-500.0,0.00024055,2]
[393188945,1762307438673,-12590.43521086,0.00024064,2]
[393188946,1762307438684,-166.66,0.00024073,2]
[393188947,1762307438695,-500.0,0.00024078,2]
[393188948,1762307438704,-500.0,0.00024078,2]
[393188949,1762307438715,-503.02765208,0.00024092,2]
[393188950,1762307438726,-500.0,0.00024092,2]
[393188951,1762307438737,-525.70096178,0.00024092,2]
[393188952,1762307438746,-1162.38,0.0002417,2]
[393188953,1762307438756,-420.0,0.00024223,2]
[393188954,1762307438766,-420.0,0.00024223,2]
[393188955,1762307438776,-1007.38751411,0.00024312,2]
[393188956,1762307438785,-1680.0,0.00024336,2]
[393188957,1762307438795,-1162.38,0.00024444,2]
[393188958,1762307438804,-828.7490067,0.00024448,2]
[393188959,1762307438814,-1500.0,0.00024448,2]
[393188960,1762307438824,-150.0,0.00024468,2]
[393188961,1762307438834,-1500.0,0.00024468,2]
[393188962,1762307438843,-1500.0,0.00024468,2]
[393188963,1762307438853,-356.82,0.00024658,2]
[393188964,1762307438863,-1000.0,0.00024658,2]
[393188965,1762307438872,-2263.7078705,0.00024673,2]
[393188966,1762307438882,-500.0,0.00024713,2]
[393188967,1762307438893,-500.0,0.00024713,2]
[393188968,1762307438903,-1162.38,0.00024718,2]
[393188969,1762307438912,-496.43608315,0.00024757,7]
[393188970,1762307438922,-605.63044433,0.00024799,2]
[393188971,1762307438934,-16942.3539833,0.000248,3]
[393188972,1762307438946,-166.66,0.00024818,2]
[393188973,1762307438956,-500.0,0.00024876,2]
[393188974,1762307438966,-500.0,0.00024932,2]
[393188975,1762307438978,-500.0,0.00024932,2]
[393188976,1762307438990,-500.0,0.00024932,2]
[393188977,1762307439001,-500.0,0.00024932,2]
[393188978,1762307439010,-1162.38,0.00024992,2]
[393188979,1762307439022,-2000.0,0.00024996,2]
[393188980,1762307439032,-1099.96,0.00025,2]
[393188981,1762307439042,-2000.0,0.00025016,2]
[393188982,1762307439052,-216.03107045,0.00025016,2]
[393188983,1762307439063,-2000.0,0.00025016,2]
[393188984,1762307439074,-500.20791126,0.00025106,2]
[393188985,1762307439084,-500.0,0.00025106,2]
[393188986,1762307439094,-500.0,0.00025106,2]
[393188987,1762307439104,-500.0,0.00025106,2]
[393188988,1762307439115,-564.89446183,0.00025106,2]
[393188989,1762307439125,-500.0,0.00025106,2]
[393188990,1762307439135,-500.0,0.00025106,2]
[393188991,1762307439145,-500.0,0.00025106,2]
[393188992,1762307439155,-500.0,0.00025106,2]
[393188993,1762307439165,-500.0,0.00025106,2]
[393188994,1762307439175,-500.0,0.00025106,2]
[393188995,1762307439187,-200.0,0.00025106,2]
[393188996,1762307439197,-500.0,0.00025106,2]
[393188997,1762307439207,-500.0,0.00025106,2]
[393188998,1762307439217,-500.0,0.00025106,2]
[393188999,1762307439228,-500.0,0.00025106,2]
[393189000,1762307439238,-510.55136191,0.00025106,2]
[393189001,1762307439249,-163.32,0.00025242,2]
[393189002,1762307439259,-16942.3539833,0.00025251,3]
[393189003,1762307439270,-1000.0,0.00025261,2]
[393189004,1762307439280,-1002.7350988,0.00025261,2]
[393189005,1762307439290,-1162.45449404,0.00025266,2]
[393189006,1762307439299,-9984.8933,0.00025319,2]
[393189007,1762307439309,-594.82279831,0.00025379,2]
[393189008,1762307439319,-1000.0,0.00025424,2]
[393189009,1762307439328,-1099.96,0.000255,2]
[393189010,1762307439338,-500.0,0.00025518,2]
[393189011,1762307439347,-2500.0,0.00025544,2]
[393189012,1762307439357,-166.66,0.00025564,2]
[393189013,1762307439367,-500.0,0.00025564,2]
[393189014,1762307439378,-2500.0,0.00025564,2]
[393189015,1762307439388,-505.1014996,0.00025613,2]